bitfinex-derivatives/quotes_ETHF0:USTF0_20260117
["timestamp","ask_amount","ask_price","bid_price","bid_amount"]
[1768678007572,0.93190069,3318.5,3317.3,0.13628152]
[1768678007775,1.677,3318.7,3317.3,0.13628152]
[1768678007961,0.93178532,3318.6,3317.3,0.13628152]
[1768678008164,0.93178532,3318.5,3317.3,0.13628152]
[1768678008371,1.677,3318.7,3317.3,0.13628152]
[1768678008574,0.93171817,3318.6,3317.3,0.13628152]
[1768678008774,0.93171817,3318.5,3317.3,0.13628152]
[1768678008966,1.677,3318.7,3317.3,0.13628152]
[1768678009166,0.93171817,3318.6,3317.3,0.13628152]
[1768678009366,0.93171817,3318.5,3317.3,0.13628152]
[1768678009568,1.677,3318.7,3317.3,0.13628152]
[1768678009767,0.93166239,3318.6,3317.3,0.13628152]
[1768678009967,0.93166239,3318.5,3317.3,0.13628152]
[1768678010168,1.677,3318.7,3317.3,0.13628152]
[1768678010476,0.93166247,3318.6,3317.3,0.13628152]
[1768678010678,0.93166247,3318.5,3317.3,0.13628152]
[1768678010878,1.677,3318.7,3317.3,0.13628152]
[1768678011080,0.93161645,3318.6,3317.3,0.13628152]
[1768678011274,0.93161645,3318.5,3317.3,0.13628152]
[1768678011480,1.677,3318.7,3317.8,0.96962089]
[1768678011672,0.93125182,3318.6,3317.8,0.96962089]
[1768678011871,0.93125182,3318.5,3317.8,0.96962089]
[1768678012073,1.677,3318.7,3317.8,0.96962089]
[1768678012271,0.93125112,3318.6,3317.8,0.96962089]
[1768678012473,0.93125112,3318.5,3317.8,0.96962089]
[1768678012678,1.677,3318.7,3317.8,0.96962089]
[1768678012979,0.93121907,3318.6,3317.8,0.96962089]
[1768678013279,0.93121907,3318.5,3317.8,0.96962089]
[1768678013579,1.677,3318.7,3317.8,0.96962089]
[1768678013782,0.93119232,3318.6,3317.8,0.96962089]
[1768678013973,0.93119232,3318.5,3317.8,0.96962089]
[1768678014174,1.677,3318.7,3317.8,0.96962089]
[1768678014376,0.93119139,3318.6,3317.8,0.96962089]
[1768678014576,0.93119139,3318.5,3317.8,0.96962089]
[1768678014876,1.677,3318.7,3317.8,0.96962089]
[1768678015075,0.93116957,3318.6,3317.8,0.96962089]
[1768678015275,0.93116957,3318.5,3317.8,0.96962089]
[1768678015475,1.677,3318.7,3317.8,0.96962089]
[1768678015676,0.93115247,3318.6,3317.8,0.96962089]
[1768678015885,0.93115247,3318.5,3317.8,0.96962089]
[1768678016075,1.677,3318.7,3317.8,0.96962089]
[1768678016274,0.93115247,3318.6,3317.8,0.96962089]
[1768678016472,0.93115247,3318.5,3317.8,0.96962089]
[1768678016676,1.677,3318.7,3317.8,0.96962089]
[1768678016876,0.93113956,3318.6,3317.8,0.96962089]
[1768678017078,0.93113956,3318.5,3317.8,0.96962089]
[1768678017375,1.677,3318.5,3317.8,0.96962089]
[1768678017571,1.677,3318.5,3317.3,0.13628152]
[1768678017781,1.677,3318.5,3317.7,0.96962089]
[1768678023488,1.677,3318.5,3317.3,0.13628152]
[1768678023489,1.677,3318.5,3316.9,0.14140962]
[1768678023685,0.1329443,3318.3,3316.9,0.14140962]
[1768678023891,0.1329443,3318.3,3317.0,0.96962089]
[1768678024487,0.1329443,3318.3,3317.2,0.96962089]
[1768678024686,0.00281466,3318.9,3317.6,0.96962089]
[1768678024687,0.1329443,3318.7,3317.6,0.96962089]
[1768678024878,5.62406097,3318.6,3317.8,0.96962089]
[1768678025082,0.93106097,3318.5,3317.8,0.96962089]
[1768678025286,0.93106097,3318.4,3317.8,0.96962089]
[1768678025486,0.93106097,3318.3,3317.8,0.96962089]
[1768678025785,4.693,3318.6,3317.8,0.96962089]
[1768678025986,0.93104016,3318.5,3317.8,0.96962089]
[1768678026185,0.93104016,3318.4,3317.8,0.96962089]
[1768678026385,0.93104016,3318.3,3317.8,0.96962089]
[1768678026681,4.693,3318.6,3317.8,0.96962089]
[1768678026886,0.93102662,3318.5,3317.8,0.96962089]
[1768678027186,0.93102662,3318.4,3317.8,0.96962089]
[1768678027484,0.93102662,3318.3,3317.8,0.96962089]
[1768678027677,4.693,3318.6,3317.8,0.96962089]
[1768678027887,0.9310124,3318.5,3317.8,0.96962089]
[1768678028084,0.9310124,3318.4,3317.8,0.96962089]
[1768678028288,0.9310124,3318.3,3317.8,0.96962089]
[1768678028490,4.693,3318.6,3317.8,0.96962089]
[1768678028692,0.93100006,3318.5,3317.6,0.96962089]
[1768678028885,0.93100006,3318.4,3317.6,0.96962089]
[1768678029085,0.93100006,3318.3,3317.6,0.96962089]
[1768678029290,4.693,3318.6,3317.6,0.96962089]
[1768678029490,0.93098501,3318.5,3317.6,0.96962089]
[1768678029683,0.93098501,3318.4,3317.6,0.96962089]
[1768678029884,0.93098501,3318.3,3317.6,0.96962089]
[1768678030082,4.693,3318.6,3317.6,0.96962089]
[1768678030283,0.93098431,3318.5,3317.6,0.96962089]
[1768678030491,0.93098431,3318.4,3317.6,0.96962089]
[1768678030693,0.93098431,3318.3,3317.6,0.96962089]
[1768678030993,4.693,3318.6,3317.6,0.96962089]
[1768678031190,0.93097321,3318.5,3317.6,0.96962089]
[1768678031390,0.93097321,3318.4,3317.6,0.96962089]
[1768678031597,0.93097321,3318.3,3317.6,0.96962089]
[1768678031793,4.693,3318.6,3317.6,0.96962089]
[1768678031993,0.93096041,3318.5,3317.6,0.96962089]
[1768678032193,0.93096041,3318.4,3317.6,0.96962089]
[1768678032496,0.93096041,3318.3,3317.6,0.96962089]
[1768678032795,4.693,3318.6,3317.6,0.96962089]
[1768678032994,0.93094802,3318.5,3317.6,0.96962089]
[1768678033189,0.93094802,3318.4,3317.6,0.96962089]
[1768678033391,0.93094802,3318.3,3317.6,0.96962089]
[1768678033690,4.693,3318.6,3317.6,0.96962089]
[1768678033890,0.9309364,3318.5,3317.6,0.96962089]
[1768678034094,0.9309364,3318.4,3317.6,0.96962089]
[1768678034394,0.9309364,3318.3,3317.6,0.96962089]
[1768678034594,4.693,3318.6,3317.6,0.96962089]
[1768678034793,0.93092552,3318.5,3317.6,0.96962089]
[1768678035099,0.93092552,3318.4,3317.6,0.96962089]
[1768678035392,0.93092552,3318.3,3317.6,0.96962089]
[1768678035594,4.693,3318.6,3317.6,0.96962089]
[1768678035797,0.93091128,3318.5,3317.6,0.96962089]
[1768678035997,0.93091128,3318.4,3317.6,0.96962089]
[1768678036198,2.60891128,3318.3,3317.6,0.96962089]
[1768678036399,1.678,3318.3,3317.6,0.96962089]
[1768678049308,1.678,3318.4,3317.6,0.96962089]
[1768678049514,0.93104752,3318.3,3317.6,0.96962089]
[1768678049716,0.1329443,3318.7,3317.6,0.96962089]
[1768678050015,0.93105126,3318.6,3317.8,0.96962089]
[1768678050211,0.93105126,3318.5,3317.8,0.96962089]
[1768678050611,0.93105126,3318.4,3317.8,0.96962089]
[1768678052120,1.678,3318.5,3317.8,0.96962089]
[1768678052321,0.93118784,3318.4,3317.8,0.96962089]
[1768678052512,1.678,3318.5,3317.8,0.96962089]
[1768678052712,0.93125003,3318.4,3317.8,0.96962089]
[1768678053012,1.678,3318.5,3317.8,0.96962089]
[1768678053213,0.93125004,3318.4,3317.8,0.96962089]
[1768678053413,1.678,3318.5,3317.8,0.96962089]
[1768678053613,0.93132158,3318.4,3317.8,0.96962089]
[1768678053812,1.678,3318.5,3317.8,0.96962089]
[1768678054013,0.93132064,3318.4,3317.8,0.96962089]
[1768678054221,1.678,3318.5,3317.8,0.96962089]
[1768678054422,0.9312877,3318.4,3317.8,0.96962089]
[1768678054623,1.678,3318.5,3317.8,0.96962089]
[1768678054824,0.9312877,3318.4,3317.8,0.96962089]
[1768678055025,1.678,3318.5,3317.8,0.96962089]
[1768678055224,0.9312893,3318.4,3317.8,0.96962089]
[1768678055524,1.678,3318.5,3317.8,0.96962089]
[1768678055723,0.9312541,3318.4,3317.8,0.96962089]
[1768678055924,1.678,3318.5,3317.8,0.96962089]
[1768678056124,0.9312541,3318.4,3317.8,0.96962089]
[1768678056322,1.678,3318.5,3317.8,0.96962089]
[1768678056522,0.93122569,3318.4,3317.8,0.96962089]
[1768678056724,1.678,3318.5,3317.8,0.96962089]
[1768678056922,0.93122569,3318.4,3317.8,0.96962089]
[1768678057225,1.678,3318.6,3318.1,0.96962089]
[1768678057529,1.678,3318.6,3318.1,0.97215696]
[1768678058832,0.00281466,3318.9,3318.1,0.97215696]
[1768678059129,2.60905232,3318.8,3318.1,0.97215696]
[1768678059327,0.93105232,3318.7,3318.1,0.97215696]
[1768678059516,1.678,3318.8,3318.1,0.97215696]
[1768678059717,0.93092937,3318.7,3318.1,0.97215696]
[1768678059917,0.93092937,3318.6,3318.1,0.97215696]
[1768678060132,1.678,3318.8,3318.1,0.97215696]
[1768678060330,0.93092993,3318.7,3318.1,0.97215696]
[1768678060525,1.678,3318.6,3318.1,0.97215696]
[1768678063829,1.678,3318.6,3318.1,0.00253607]
[1768678064022,1.678,3318.6,3318.1,0.97215696]
[1768678066135,1.678,3318.6,3318.1,0.00253607]
[1768678073640,0.00281466,3318.9,3318.1,0.00253607]
[1768678073830,2.60741838,3318.8,3318.1,0.00253607]
[1768678074031,0.92941838,3318.7,3318.1,0.00253607]
[1768678074230,0.92941838,3318.6,3318.1,0.00253607]
[1768678074435,1.678,3318.8,3318.1,0.00253607]
[1768678074636,0.9294654,3318.7,3318.1,0.00253607]
[1768678074838,0.9294654,3318.6,3318.1,0.00253607]
[1768678075033,1.678,3318.8,3318.1,0.00253607]
[1768678075233,0.9294654,3318.7,3318.1,0.00253607]
[1768678075436,0.9294654,3318.6,3318.1,0.00253607]
[1768678075635,1.678,3318.8,3318.1,0.00253607]
[1768678075836,0.92952314,3318.7,3318.1,0.00253607]
[1768678076035,0.92952314,3318.6,3318.1,0.00253607]
[1768678076334,1.678,3318.8,3318.1,0.00253607]
[1768678076533,0.92959004,3318.7,3318.1,0.00253607]
[1768678076734,0.92959004,3318.6,3318.1,0.00253607]
[1768678076935,1.678,3318.8,3318.1,0.00253607]
[1768678077134,0.92959004,3318.7,3318.1,0.00253607]
[1768678077339,0.92959004,3318.6,3318.1,0.00253607]
[1768678077543,1.678,3318.8,3318.1,0.00253607]
[1768678077736,0.92967066,3318.7,3318.1,0.00253607]
[1768678077936,0.92967066,3318.6,3318.1,0.00253607]
[1768678078136,1.678,3318.8,3318.1,0.00253607]
[1768678078340,0.92967066,3318.7,3318.1,0.00253607]
[1768678078540,0.92967066,3318.6,3318.1,0.00253607]
[1768678078741,1.678,3318.8,3318.1,0.00253607]
[1768678078943,0.92976959,3318.7,3318.1,0.00253607]
[1768678079240,0.92976959,3318.6,3318.1,0.00253607]
[1768678079444,1.678,3318.8,3318.1,0.00253607]
[1768678079630,0.92989182,3318.7,3318.1,0.00253607]
[1768678079928,0.92989182,3318.6,3318.1,0.00253607]
[1768678080127,1.678,3318.8,3318.1,0.00253607]
[1768678080332,0.92990715,3318.7,3318.1,0.00253607]
[1768678080533,0.92990715,3318.6,3318.1,0.00253607]
[1768678080735,1.678,3318.8,3318.1,0.00253607]
[1768678080940,0.92993331,3318.7,3318.1,0.00253607]
[1768678081139,0.92993331,3318.6,3318.1,0.00253607]
[1768678081338,1.678,3318.8,3318.1,0.00253607]
[1768678081643,0.92997291,3318.7,3318.1,0.00253607]
[1768678081832,0.92997291,3318.6,3318.1,0.00253607]
[1768678082136,1.678,3318.8,3318.1,0.00253607]
[1768678082335,2.60801063,3318.7,3318.1,0.00253607]
[1768678082629,0.93001063,3318.6,3318.1,0.00253607]
[1768678087539,0.93001063,3318.5,3318.1,0.00253607]
[1768678096156,1.678,3318.6,3318.1,0.00253607]
[1768678096346,0.93045802,3318.5,3318.1,0.00253607]
[1768678096539,1.678,3318.6,3318.1,0.00253607]
[1768678096743,0.9304626,3318.5,3318.1,0.00253607]
[1768678096944,1.678,3318.6,3318.1,0.00253607]
[1768678097149,0.93045987,3318.5,3318.1,0.00253607]
[1768678097353,1.678,3318.6,3318.1,0.00253607]
[1768678097557,0.93047168,3318.5,3318.1,0.00253607]
[1768678097851,1.678,3318.6,3317.4,1.09947382]
[1768678098052,0.93047164,3318.5,3317.4,1.09947382]
[1768678098241,1.678,3318.6,3317.4,1.09947382]
[1768678098447,0.93047933,3318.5,3317.4,1.09947382]
[1768678098643,1.678,3318.6,3317.4,1.1031065]
[1768678098844,0.93047938,3318.5,3317.4,1.1031065]
[1768678099044,1.678,3318.6,3317.4,1.1031065]
[1768678099245,0.93047938,3318.5,3317.4,1.1031065]
[1768678099455,1.678,3318.6,3317.4,1.1031065]
[1768678099657,0.9304901,3318.5,3317.4,1.1031065]
[1768678099852,1.678,3318.6,3317.4,1.1031065]
[1768678100257,0.93049115,3318.5,3317.4,1.1031065]
[1768678100448,1.678,3318.6,3317.4,1.1031065]
[1768678100649,0.93049114,3318.5,3317.4,1.1031065]
[1768678100948,1.678,3318.6,3317.4,1.1031065]
[1768678101147,0.93049116,3318.5,3317.4,1.1031065]
[1768678101349,1.678,3318.6,3317.4,1.1031065]
[1768678102659,0.00281466,3318.9,3317.4,1.1031065]
[1768678102850,2.60522262,3318.8,3317.4,1.1031065]
[1768678103050,0.92722262,3318.7,3317.4,1.1031065]
[1768678103257,0.92722262,3318.6,3317.4,1.1031065]
[1768678103450,1.678,3318.8,3317.4,1.1031065]
[1768678103651,0.92721966,3318.7,3317.4,1.1031065]
[1768678103852,0.92721966,3318.6,3317.4,1.1031065]
[1768678104053,1.678,3318.8,3317.4,1.1031065]
[1768678104265,0.9272203,3318.7,3317.4,1.1031065]
[1768678104463,0.9272203,3318.6,3317.4,1.1031065]
[1768678104653,1.678,3318.8,3317.4,1.1031065]
[1768678104853,0.9272195,3318.7,3317.4,1.1031065]
[1768678105157,0.9272195,3318.6,3317.4,1.1031065]
[1768678105454,1.678,3318.8,3317.4,1.1031065]
[1768678105655,0.92721838,3318.7,3317.4,1.1031065]
[1768678105856,0.92721838,3318.6,3317.4,1.1031065]
[1768678106056,1.678,3318.8,3317.4,1.1031065]
[1768678106257,0.92722455,3318.7,3317.4,1.1031065]
[1768678106458,0.92722455,3318.6,3317.4,1.1031065]
[1768678106658,1.678,3318.8,3317.4,1.1031065]
[1768678106869,0.92720122,3318.7,3317.4,1.1031065]
[1768678107065,0.92720122,3318.6,3317.4,1.1031065]
[1768678107266,1.678,3318.8,3317.4,1.1031065]
[1768678107465,0.92718564,3318.7,3317.4,1.1031065]
[1768678107667,0.92718564,3318.6,3317.4,1.1031065]
[1768678107862,1.678,3318.8,3317.4,1.1031065]
[1768678108063,0.92716853,3318.7,3317.4,1.1031065]
[1768678108363,0.92716853,3318.6,3317.4,1.1031065]
[1768678108662,1.678,3318.8,3317.4,1.1031065]
[1768678108864,0.9271546,3318.7,3317.4,1.1031065]
[1768678109065,0.9271546,3318.6,3317.4,1.1031065]
[1768678109265,1.678,3318.8,3317.4,1.1031065]
[1768678109465,0.92715441,3318.7,3317.4,1.1031065]
[1768678109665,0.92715441,3318.6,3317.4,1.1031065]
[1768678109865,1.678,3318.8,3317.4,1.1031065]
[1768678110069,0.9271543,3318.7,3317.4,1.1031065]
[1768678110370,0.9271543,3318.6,3317.4,1.1031065]
[1768678110563,1.678,3318.8,3317.4,1.1031065]
[1768678110772,0.92714801,3318.7,3317.4,1.1031065]
[1768678110964,0.92714801,3318.6,3317.4,1.1031065]
[1768678111172,1.678,3318.8,3317.4,1.1031065]
[1768678111366,0.92714268,3318.7,3317.4,1.1031065]
[1768678111566,0.92714268,3318.6,3317.4,1.1031065]
[1768678111873,1.678,3318.8,3317.4,1.1031065]
[1768678112067,0.92714109,3318.7,3317.4,1.1031065]
[1768678112266,0.92714109,3318.6,3317.4,1.1031065]
[1768678112467,1.678,3318.8,3317.4,1.1031065]
[1768678112667,0.92713356,3318.7,3317.4,1.1031065]
[1768678112863,1.678,3318.8,3317.4,1.1031065]
[1768678112864,0.92713356,3318.6,3317.4,1.1031065]
[1768678113065,1.678,3318.8,3317.4,1.1031065]
[1768678113268,0.92713286,3318.7,3317.4,1.1031065]
[1768678113467,0.92713286,3318.6,3317.4,1.1031065]
[1768678113669,1.678,3318.8,3317.4,1.1031065]
[1768678113670,1.81192984,3318.9,3317.4,1.1031065]
[1768678113972,0.92712921,3318.8,3317.4,1.1031065]
[1768678114169,0.92712921,3318.7,3317.4,1.1031065]
[1768678114473,0.92712921,3318.6,3317.4,0.13352359]
[1768678114674,1.81192984,3318.9,3317.4,0.13352359]
[1768678114864,0.92712504,3318.8,3317.4,0.13352359]
[1768678115064,0.92712504,3318.7,3317.4,0.13352359]
[1768678115264,0.92712504,3318.6,3317.4,0.13352359]
[1768678115563,1.81192984,3318.9,3317.4,0.13352359]
[1768678115765,0.92712175,3318.8,3317.4,0.13352359]
[1768678115970,0.92712175,3318.7,3317.4,0.13352359]
[1768678116172,0.92712175,3318.6,3317.4,0.13352359]
[1768678116373,1.81192984,3318.9,3317.4,0.13352359]
[1768678116574,0.92712087,3318.8,3317.4,0.13352359]
[1768678116774,0.92712087,3318.7,3317.4,0.13352359]
[1768678116967,0.92712087,3318.6,3317.4,0.13352359]
[1768678117265,1.81192984,3318.9,3317.4,0.13352359]
[1768678117465,0.9271185,3318.8,3317.4,0.13352359]
[1768678117665,0.9271185,3318.7,3317.4,0.13352359]
[1768678117874,0.9271185,3318.6,3317.4,0.13352359]
[1768678118075,1.81192984,3318.9,3317.4,0.13352359]
[1768678118273,1.06295941,3318.8,3317.4,0.13352359]
[1768678118467,0.92712483,3318.7,3317.4,0.13352359]
[1768678121285,0.92712483,3318.7,3317.4,0.00363268]
[1768678124471,1.06295941,3318.7,3317.4,0.00363268]
[1768678124666,0.92712483,3318.6,3317.4,0.00363268]
[1768678133297,0.92712483,3318.6,3317.9,0.96952585]
[1768678139106,0.92712483,3318.6,3317.4,0.00363268]
[1768678139296,0.92712483,3318.6,3317.7,0.96952585]
[1768678140498,1.06178632,3318.6,3317.4,0.00363268]
[1768678140700,0.92712483,3318.5,3317.8,0.96952585]
[1768678141203,0.13466149,3319.6,3318.4,0.96952585]
[1768678141597,0.13747615,3319.6,3318.4,0.96952585]
[1768678142197,0.14069934,3319.6,3318.4,0.96952585]
[1768678143902,0.13747615,3319.5,3318.6,0.96952585]
[1768678144106,0.13466149,3319.5,3318.6,0.96952585]
[1768678144305,0.00281466,3319.4,3318.6,0.96952585]
[1768678144805,0.00281466,3319.3,3318.6,0.96952585]
[1768678145104,0.00281466,3319.4,3318.6,0.96952585]
[1768678145804,0.00281466,3319.3,3318.6,0.96952585]
[1768678146002,0.00322319,3319.6,3318.8,0.96952585]
[1768678146305,0.00281466,3319.4,3318.8,0.96952585]
[1768678146807,0.00281466,3319.3,3318.8,0.96952585]
[1768678146995,0.00281466,3319.4,3318.8,0.96952585]
[1768678147397,0.00281466,3319.3,3318.8,0.96952585]
[1768678147704,0.00281466,3319.4,3318.8,0.96952585]
[1768678148506,0.00281466,3319.3,3318.8,0.96952585]
[1768678148707,0.00322319,3319.6,3318.8,0.96952585]
[1768678148708,0.00281466,3319.4,3318.8,0.96952585]
[1768678149907,0.00322319,3319.6,3318.8,0.96952585]
[1768678150108,0.00281466,3319.4,3318.8,0.96952585]
[1768678150611,0.00281466,3319.4,3318.6,0.96952585]
[1768678150805,0.00322319,3319.6,3318.6,0.96952585]
[1768678151001,0.00281466,3319.5,3318.6,0.96952585]
[1768678151202,0.00281466,3319.4,3318.3,0.96952585]
[1768678151401,0.13788468,3319.6,3318.3,0.96952585]
[1768678151602,0.00281466,3319.5,3318.3,0.96952585]
[1768678151802,0.13747615,3319.5,3317.7,0.13167506]
[1768678152003,0.13466149,3319.5,3318.3,0.96952585]
[1768678152498,0.00281466,3319.4,3318.3,0.96952585]
[1768678154914,0.13466149,3319.5,3318.3,0.96952585]
[1768678155103,0.00281466,3319.4,3318.3,0.96952585]
[1768678155304,0.00281466,3319.4,3317.7,0.13167506]
[1768678155305,0.00281466,3319.4,3318.5,0.96952585]
[1768678155505,0.13466149,3319.5,3318.5,0.96952585]
[1768678155712,0.00281466,3319.3,3318.5,0.96952585]
[1768678156810,0.13466149,3319.5,3318.5,0.96952585]
[1768678157017,0.00281466,3319.3,3318.5,0.96952585]
[1768678157421,0.00281466,3319.2,3318.5,0.96952585]
[1768678157611,0.00281466,3319.3,3318.5,0.96952585]
[1768678158118,0.00281466,3319.2,3318.5,0.96952585]
[1768678158315,0.00281466,3319.3,3318.5,0.96952585]
[1768678159019,0.00281466,3319.2,3318.5,0.96952585]
[1768678159219,0.00281466,3319.3,3318.5,0.96952585]
[1768678159923,0.00281466,3319.2,3318.5,0.96952585]
[1768678160113,0.00281466,3319.3,3318.5,0.96952585]
[1768678160614,0.00281466,3319.2,3318.5,0.96952585]
[1768678160813,0.00281466,3319.3,3318.5,0.96952585]
[1768678161723,0.00281466,3319.2,3318.0,0.13167506]
[1768678162022,0.13466149,3319.5,3318.5,0.96952585]
[1768678162426,0.00281466,3319.3,3318.5,0.96952585]
[1768678162726,0.13466149,3319.5,3318.5,0.96952585]
[1768678163022,0.00281466,3319.2,3318.5,0.96952585]
[1768678164129,0.00281466,3319.1,3318.5,0.96952585]
[1768678164319,0.00281466,3319.2,3318.5,0.96952585]
[1768678165318,0.00281466,3319.1,3318.5,0.96952585]
[1768678165517,0.00281466,3319.2,3318.5,0.96952585]
[1768678165925,0.00281466,3319.1,3318.5,0.96952585]
[1768678166124,0.00281466,3319.2,3318.5,0.96952585]
[1768678166315,0.00281466,3319.1,3318.5,0.96952585]
[1768678166516,0.00281466,3319.2,3318.5,0.96952585]
[1768678167125,0.00281466,3319.1,3318.5,0.96952585]
[1768678167315,0.00281466,3319.2,3318.5,0.96952585]
[1768678168329,0.13466149,3319.5,3318.5,0.96952585]
[1768678168519,0.00281466,3319.2,3318.5,0.96952585]
[1768678168924,0.00281466,3319.1,3318.5,0.96952585]
[1768678169125,0.00281466,3319.2,3318.5,0.96952585]
[1768678169828,0.00281466,3319.0,3318.5,0.96952585]
[1768678170042,0.00281466,3319.2,3318.5,0.96952585]
[1768678170420,0.00281466,3319.0,3318.5,0.96952585]
[1768678170621,0.00281466,3319.2,3318.5,0.96952585]
[1768678170920,0.00281466,3319.0,3318.5,0.96952585]
[1768678171219,0.00281466,3319.2,3318.5,0.96952585]
[1768678171916,0.00281466,3319.0,3318.5,0.96952585]
[1768678172120,0.00281466,3319.2,3318.5,0.96952585]
[1768678172524,0.00281466,3319.0,3318.5,0.96952585]
[1768678172728,0.00281466,3319.2,3318.5,0.96952585]
[1768678173428,0.00281466,3319.0,3318.5,0.96952585]
[1768678173621,0.00281466,3319.2,3318.5,0.96952585]
[1768678174731,0.00322319,3319.6,3318.5,0.96952585]
[1768678174929,0.00281466,3319.2,3318.5,0.96952585]
[1768678175322,0.00281466,3319.0,3318.5,0.96952585]
[1768678175522,0.00281466,3319.2,3318.5,0.96952585]
[1768678176431,0.00281466,3319.0,3318.5,0.96952585]
[1768678176632,0.00281466,3319.2,3318.5,0.96952585]
[1768678177431,0.00281466,3319.0,3318.5,0.96952585]
[1768678177633,0.00281466,3319.2,3318.5,0.96952585]
[1768678178129,0.00281466,3319.0,3318.5,0.96952585]
[1768678178330,0.00281466,3319.2,3318.5,0.96952585]
[1768678179435,0.00322319,3319.6,3318.5,0.96952585]
[1768678179735,0.00281466,3319.2,3318.5,0.96952585]
[1768678180133,0.00281466,3318.9,3318.5,0.96952585]
[1768678180430,0.00322319,3319.6,3318.5,0.96952585]
[1768678180431,0.00281466,3319.1,3318.5,0.96952585]
[1768678181533,0.00281466,3318.9,3318.5,0.96952585]
[1768678181834,0.00322319,3319.6,3318.5,0.96952585]
[1768678182046,0.92080103,3319.5,3318.5,0.96952585]
[1768678182335,0.00322319,3319.6,3318.5,0.96952585]
[1768678182637,0.92080101,3319.5,3318.5,0.96952585]
[1768678182837,0.00322319,3319.6,3318.5,0.96952585]
[1768678183037,0.920801,3319.5,3318.5,0.96952585]
[1768678183238,0.00322319,3319.6,3318.5,0.96952585]
[1768678183439,0.92080099,3319.5,3318.5,0.96952585]
[1768678183640,0.00322319,3319.6,3318.5,0.96952585]
[1768678183840,0.92080121,3319.5,3318.5,0.96952585]
[1768678184040,0.00322319,3319.6,3318.5,0.96952585]
[1768678184242,0.92080151,3319.5,3318.5,0.96952585]
[1768678184441,0.00322319,3319.6,3318.5,0.96952585]
[1768678184644,0.92080119,3319.5,3318.5,0.96952585]
[1768678184847,0.00322319,3319.6,3318.5,0.96952585]
[1768678185143,0.92080129,3319.5,3318.5,0.96952585]
[1768678185344,0.00322319,3319.6,3318.5,0.96952585]
[1768678185543,0.92080277,3319.5,3318.5,0.96952585]
[1768678185844,0.00322319,3319.6,3318.5,0.96952585]
[1768678186043,0.92080279,3319.5,3318.5,0.96952585]
[1768678186244,0.00322319,3319.6,3318.5,0.96952585]
[1768678186447,0.92080279,3319.5,3318.5,0.96952585]
[1768678186642,0.00322319,3319.6,3318.5,0.96952585]
[1768678186844,0.92080292,3319.5,3318.5,0.96952585]
[1768678187045,0.00322319,3319.6,3318.5,0.96952585]
[1768678187248,0.92080289,3319.5,3318.5,0.96952585]
[1768678187552,0.96952585,3319.2,3318.0,0.13167506]
[1768678187944,0.92068231,3319.1,3318.0,0.13167506]
[1768678188144,0.96952585,3319.2,3318.0,0.13167506]
[1768678188639,0.92005945,3319.1,3318.0,0.13167506]
[1768678188839,0.96952585,3319.2,3318.0,0.13167506]
[1768678189043,0.92005954,3319.1,3318.0,0.13167506]
[1768678189242,0.96952585,3319.2,3318.0,0.13167506]
[1768678193360,1.677,3319.3,3318.0,0.13167506]
[1768678193553,0.92123993,3319.2,3318.0,0.13167506]
[1768678193753,1.677,3319.3,3318.0,0.13167506]
[1768678193953,0.92123989,3319.2,3318.0,0.13167506]
[1768678194155,1.677,3319.3,3318.0,0.13167506]
[1768678194354,0.9211574,3319.2,3318.0,0.13167506]
[1768678194555,1.677,3319.3,3318.0,0.13167506]
[1768678194758,0.92115837,3319.2,3318.0,0.13167506]
[1768678194960,1.677,3319.3,3318.0,0.13167506]
[1768678195264,0.9211574,3319.2,3318.0,0.13167506]
[1768678195465,1.677,3319.3,3318.0,0.13167506]
[1768678195666,0.92108819,3319.2,3318.0,0.13167506]
[1768678195962,1.677,3319.3,3318.0,0.13167506]
[1768678196164,0.92108819,3319.2,3318.0,0.13167506]
[1768678196360,1.677,3319.3,3318.0,0.13167506]
[1768678196561,0.92103059,3319.2,3318.0,0.13167506]
[1768678196761,1.677,3319.3,3318.0,0.13167506]
[1768678196965,0.92103059,3319.2,3318.0,0.13167506]
[1768678197166,1.677,3319.3,3318.0,0.13167506]
[1768678198367,1.677,3319.3,3317.7,0.15075]
[1768678200268,0.92089971,3319.2,3317.6,0.13051346]
[1768678200467,0.13085119,3319.2,3317.6,0.13051346]
[1768678200767,0.9208568,3319.1,3317.6,0.13051346]
[1768678200967,0.13085119,3319.1,3317.6,0.13051346]
[1768678203864,0.96953838,3318.9,3317.4,0.00363268]
[1768678204068,0.13085119,3318.7,3317.4,0.00363268]
[1768678223293,0.9213331,3318.6,3317.4,0.00363268]
[1768678223473,0.13085119,3318.7,3317.4,0.00363268]
[1768678223677,0.9213331,3318.6,3317.4,0.00363268]
[1768678223878,0.13085119,3318.7,3317.4,0.00363268]
[1768678224176,0.9213331,3318.6,3317.4,0.00363268]
[1768678224378,0.13085119,3318.7,3317.4,0.00363268]
[1768678224578,0.92142245,3318.6,3317.4,0.00363268]
[1768678224778,0.13085119,3318.7,3317.4,0.00363268]
[1768678224986,0.92142223,3318.6,3317.4,0.00363268]
[1768678225182,0.13085119,3318.7,3317.4,0.00363268]
[1768678225386,0.92153407,3318.6,3317.4,0.00363268]
[1768678225588,0.13085119,3318.7,3317.4,0.00363268]
[1768678225891,0.92153407,3318.6,3317.4,0.00363268]
[1768678226189,0.13085119,3318.7,3317.4,0.00363268]
[1768678226387,0.92167887,3318.6,3317.4,0.00363268]
[1768678226686,0.13085119,3318.7,3317.4,0.00363268]
[1768678226887,0.92167806,3318.6,3317.4,0.00363268]
[1768678227188,0.14242557,3318.6,3317.4,0.00363268]
[1768678229187,0.92235184,3318.5,3317.4,0.00363268]
[1768678229492,0.14242557,3318.6,3317.4,0.00363268]
[1768678229690,0.92235184,3318.5,3317.4,0.00363268]
[1768678229989,0.14242557,3318.6,3317.4,0.00363268]
[1768678230191,0.92235184,3318.5,3317.4,0.00363268]
[1768678230393,0.14242557,3318.6,3317.4,0.00363268]
[1768678230582,0.9223636,3318.5,3317.4,0.00363268]
[1768678230783,0.14242557,3318.6,3317.4,0.00363268]
[1768678231088,0.9223636,3318.5,3317.4,0.00363268]
[1768678231292,0.14242557,3318.6,3317.4,0.00363268]
[1768678231489,0.92252687,3318.5,3317.4,0.00363268]
[1768678231681,0.14242557,3318.6,3317.4,0.00363268]
[1768678231881,0.92252687,3318.5,3317.4,0.00363268]
[1768678232083,0.14242557,3318.6,3317.4,0.00363268]
[1768678232382,0.92253833,3318.5,3317.4,0.00363268]
[1768678232581,0.14242557,3318.6,3317.4,0.00363268]
[1768678232783,0.92273844,3318.5,3317.4,0.00363268]
[1768678232983,0.14242557,3318.6,3317.4,0.00363268]
[1768678233284,0.92273844,3318.5,3317.4,0.00363268]
[1768678233582,0.14242557,3318.6,3317.4,0.00363268]
[1768678233784,0.9230722,3318.5,3317.4,0.00363268]
[1768678233984,0.14242557,3318.6,3317.4,0.00363268]